bitfinex-derivatives/quotes_ETHF0:USTF0_20250606
["timestamp","ask_amount","ask_price","bid_price","bid_amount"]
[1749183025949,3.2078,2452.9,2452.7,0.81501]
[1749183026154,3.2078,2452.9,2452.6,0.81505]
[1749183026354,3.2078,2452.9,2452.7,0.81501]
[1749183026553,3.2078,2452.9,2452.7,0.815]
[1749183026850,3.2078,2452.9,2452.8,0.81499]
[1749183027458,4.02277,2452.9,2452.7,0.81501]
[1749183027871,5.30497,2452.9,2452.7,0.81501]
[1749183028165,3.2078,2454.2,2452.9,2.0374]
[1749183028383,2.0356,2454.0,2453.6,3.2078]
[1749183028566,8.6398,2454.5,2453.9,3.2078]
[1749183028567,0.81451,2454.3,2453.9,3.2078]
[1749183028766,0.81458,2454.1,2453.9,3.2078]
[1749183028966,1.3432,2454.2,2453.9,3.2078]
[1749183029365,0.81458,2454.1,2453.9,3.2078]
[1749183029566,1.3432,2454.2,2453.9,3.2078]
[1749183029767,0.81459,2454.1,2453.9,3.2078]
[1749183030465,1.3432,2454.2,2453.9,3.2078]
[1749183031171,1.3432,2454.2,2453.8,0.00612182]
[1749183031368,0.81458,2454.1,2453.8,0.00612182]
[1749183031569,2.1179,2454.0,2453.8,0.00612182]
[1749183032467,0.81463,2453.9,2453.8,0.00612182]
[1749183032674,7.11793,2453.9,2453.8,0.00612182]
[1749183033478,1.3033,2453.9,2453.8,0.00612182]
[1749183033973,2.11793,2453.9,2453.8,0.00612182]
[1749183035871,1.3033,2453.9,2453.8,0.00612182]
[1749183036568,2.11793,2453.9,2453.8,0.00612182]
[1749183036969,1.3033,2453.9,2453.8,0.00612182]
[1749183037367,0.6361,2454.1,2453.8,0.00612182]
[1749183037575,0.34572182,2454.3,2453.8,0.82076182]
[1749183037576,1.16023182,2454.3,2453.8,0.82076182]
[1749183037979,1.67272182,2454.3,2454.0,0.81458]
[1749183038277,1.67272182,2454.3,2453.9,3.2078]
[1749183038278,1.67272182,2454.3,2453.9,4.02241]
[1749183038874,2.48723182,2454.3,2453.9,3.2078]
[1749183039075,2.48723182,2454.3,2453.8,2.20016182]
[1749183039076,1.67272182,2454.3,2453.8,5.32212182]
[1749183039374,0.81458,2454.1,2453.8,0.00612182]
[1749183039574,1.327,2454.0,2453.8,0.00612182]
[1749183041079,2.1416,2454.0,2453.8,0.00612182]
[1749183041281,1.327,2454.0,2453.8,0.00612182]
[1749183041575,2.1416,2454.0,2453.8,0.00612182]
[1749183041782,1.327,2454.0,2453.8,0.00612182]
[1749183041982,0.6802,2453.9,2453.8,0.00612182]
[1749183042376,2.051,2453.9,2453.8,0.00612182]
[1749183043686,2.86563,2453.9,2453.8,0.00612182]
[1749183044580,2.051,2453.9,2453.8,0.00612182]
[1749183044987,2.86563,2453.9,2453.8,0.00612182]
[1749183045191,2.86563,2453.9,2453.1,0.81488]
[1749183045192,10.2588,2453.9,2453.1,0.81488]
[1749183045483,10.2588,2453.9,2453.0,2.20061]
[1749183045484,0.81481,2453.4,2453.0,2.20061]
[1749183045685,1.3051,2453.3,2453.0,2.20061]
[1749183046491,1.3051,2453.3,2453.0,2.20063]
[1749183046790,0.81488,2453.2,2453.0,0.693]
[1749183047088,0.81488,2453.2,2452.9,0.00612182]
[1749183047089,1.44628,2453.2,2452.9,0.00612182]
[1749183047275,1.3908,2453.1,2452.9,0.00612182]
[1749183048180,1.3908,2453.1,2452.9,0.82106182]
[1749183048490,3.2078,2453.6,2452.9,0.00612182]
[1749183048684,3.2078,2453.6,2453.0,0.81492]
[1749183048685,0.8148,2453.4,2453.0,0.81492]
[1749183048894,1.3908,2453.3,2453.0,0.81492]
[1749183050796,1.3908,2453.3,2452.9,0.82107182]
[1749183052295,1.3908,2453.3,2453.0,0.8149]
[1749183054393,1.3908,2453.3,2452.9,0.82107182]
[1749183054587,1.3908,2453.3,2452.9,0.82106182]
[1749183055090,1.3908,2453.3,2452.9,0.00612182]
[1749183055297,0.81488,2453.2,2452.9,0.00612182]
[1749183055799,2.16888,2453.2,2452.9,0.00612182]
[1749183056297,1.354,2453.2,2452.9,0.00612182]
[1749183057094,0.81491,2453.1,2452.9,0.00612182]
[1749183057895,0.81493,2453.0,2452.9,0.00612182]
[1749183058098,1.50213,2453.0,2452.9,0.00612182]
[1749183058493,0.6872,2453.0,2452.9,0.00612182]
[1749183062092,7.48588,2453.2,2452.9,0.00612182]
[1749183063499,6.671,2453.2,2452.9,0.82108182]
[1749183064593,6.671,2453.2,2452.9,0.00612182]
[1749183065199,6.671,2453.2,2452.9,0.82108182]
[1749183065595,3.2078,2453.3,2453.1,0.8149]
[1749183066000,3.2078,2453.3,2453.0,1.48011]
[1749183066594,3.2078,2453.3,2453.0,0.6652]
[1749183066906,3.2078,2453.3,2453.1,0.81489]
[1749183067394,3.2078,2453.3,2453.2,0.81487]
[1749183067592,3.2078,2453.3,2453.1,0.81488]
[1749183068898,3.2078,2453.3,2453.0,1.9327]
[1749183069103,3.2078,2453.3,2453.1,0.81488]
[1749183069495,3.2078,2453.3,2453.1,1.44988]
[1749183070097,3.2078,2453.3,2453.1,0.635]
[1749183070307,5.8627,2453.5,2453.4,0.8148]
[1749183070308,0.6517,2453.5,2453.4,0.8148]
[1749183070495,0.6517,2453.5,2453.1,1.9025]
[1749183070496,3.2078,2453.7,2453.1,1.9025]
[1749183070801,6.65614,2453.9,2453.5,0.81475]
[1749183071194,0.81467,2453.8,2453.4,4.02258]
[1749183071395,3.2078,2453.8,2453.1,6.25767143]
[1749183071604,0.81481,2453.4,2453.1,6.25767143]
[1749183071802,0.81478,2453.5,2453.1,4.6577]
[1749183072002,1.2743,2453.7,2453.2,0.81486]
[1749183072003,1.44344,2453.6,2453.2,0.81486]
[1749183072299,1.2743,2453.5,2453.2,0.81486]
[1749183072503,2.08907,2453.5,2453.1,7.07256143]
[1749183072702,2.08907,2453.5,2453.1,1.44989]
[1749183072899,1.2743,2453.5,2453.1,0.635]
[1749183073099,3.2078,2453.8,2453.4,3.2078]
[1749183073299,3.2078,2453.8,2453.5,0.6789]
[1749183073500,3.2078,2453.8,2453.5,1.49365]
[1749183073694,3.2078,2453.8,2453.5,0.6789]
[1749183073901,5.8415,2453.9,2453.5,1.49364]
[1749183074103,6.65614,2453.9,2453.5,1.49364]
[1749183074302,5.8415,2453.9,2453.5,1.49365]
[1749183074700,5.8415,2453.9,2453.5,2.85465]
[1749183075009,0.81468,2453.8,2453.5,2.0399]
[1749183075204,5.8415,2453.9,2453.5,0.6789]
[1749183075400,6.65615,2453.9,2453.5,0.6789]
[1749183075707,6.65615,2453.9,2453.5,1.49367]
[1749183076409,6.65615,2453.9,2453.5,1.49366]
[1749183076811,3.2078,2453.6,2453.3,2.41487143]
[1749183077007,3.2078,2453.6,2452.9,0.00612182]
[1749183077008,8.09100146,2453.5,2452.9,0.00612182]
[1749183077212,3.2078,2453.2,2452.9,0.00612182]
[1749183077509,2.09632,2453.1,2452.9,0.00612182]
[1749183078004,0.81494,2453.0,2452.9,0.00612182]
[1749183078203,2.09634,2453.0,2452.9,0.00612182]
[1749183078702,1.2814,2453.0,2452.9,0.00612182]
[1749183079206,8.4188,2453.2,2452.9,0.00612182]
[1749183079503,0.81493,2453.1,2452.9,0.00612182]
[1749183079899,10.5151,2453.2,2452.9,0.00612182]
[1749183080104,9.7002,2453.2,2452.9,0.00612182]
[1749183080313,0.81493,2453.1,2452.9,0.00612182]
[1749183080611,1.2868,2453.0,2452.9,0.00612182]
[1749183081204,6.0259,2453.2,2452.9,0.00612182]
[1749183081804,5.211,2453.2,2452.9,0.00612182]
[1749183082004,5.211,2453.2,2452.9,0.82109182]
[1749183082510,6.02589,2453.2,2452.9,0.00612182]
[1749183082706,6.4978,2453.2,2452.9,0.82110182]
[1749183083008,3.8766,2453.5,2452.9,3.21392182]
[1749183083206,0.6688,2453.5,2453.2,0.81487]
[1749183083710,0.6408,2453.7,2453.2,0.81488]
[1749183083910,0.6408,2453.7,2453.2,2.17848]
[1749183084207,0.6408,2453.7,2453.2,3.77847143]
[1749183084509,0.6408,2453.7,2453.3,0.81483]
[1749183084811,0.6408,2453.7,2453.3,2.41487143]
[1749183085012,1.45552,2453.7,2453.3,0.81483]
[1749183085205,2.80102,2453.7,2453.3,0.81483]
[1749183085406,1.9863,2453.7,2453.3,0.81483]
[1749183085614,2.80104,2453.7,2453.2,6.43753143]
[1749183085815,5.1941,2453.7,2453.2,3.2078]
[1749183086301,0.8148,2453.5,2453.2,3.2078]
[1749183087005,1.3224,2453.4,2453.1,6.0259]
[1749183087313,1.3224,2453.4,2453.1,5.211]
[1749183087513,1.3224,2453.4,2453.1,7.62587143]
[1749183087810,1.3224,2453.4,2453.1,8.44077143]
[1749183088608,3.8486,2453.7,2453.1,7.62587143]
[1749183088815,5.211,2453.8,2453.2,5.62267143]
[1749183089004,0.6866,2453.9,2453.3,2.41487143]
[1749183089212,0.6866,2453.9,2453.5,0.81476]
[1749183089513,1.50125,2453.9,2453.6,0.6677]
[1749183089713,0.6866,2453.9,2453.6,0.6677]
[1749183089914,0.6866,2453.9,2453.6,4.69025]
[1749183090111,0.6866,2453.9,2453.6,4.69023]
[1749183091015,0.6866,2453.9,2453.6,1.48243]
[1749183091414,5.211,2454.0,2453.6,3.8755]
[1749183091713,1.3813,2454.2,2453.9,0.81465]
[1749183091914,1.3813,2454.2,2453.8,0.81466]
[1749183092113,2.19586,2454.2,2453.8,0.81466]
[1749183092510,1.3813,2454.2,2453.7,4.43107143]
[1749183092718,2.19586,2454.2,2453.8,0.81466]
[1749183094620,2.19586,2454.2,2453.9,0.81465]
[1749183095216,1.3813,2454.2,2453.9,0.81465]
[1749183095816,2.19588,2454.2,2453.8,0.81465]
[1749183096323,2.19588,2454.2,2453.9,0.81464]
[1749183096522,1.3813,2454.2,2453.9,0.81464]
[1749183096713,0.3396,2454.1,2453.9,0.81464]
[1749183097420,0.3396,2454.1,2453.8,0.81467]
[1749183097922,1.15419,2454.1,2453.7,2.83089]
[1749183098217,0.3396,2454.1,2453.8,0.81468]
[1749183098616,1.15419,2454.1,2453.7,2.8309]
[1749183099319,1.15419,2454.1,2453.8,0.81468]
[1749183099520,0.3396,2454.1,2453.8,0.81468]
[1749183100722,1.15419,2454.1,2453.7,2.8309]
[1749183100921,0.3396,2454.1,2453.7,2.8309]
[1749183101125,1.15421,2454.1,2453.7,2.8309]
[1749183101921,1.15421,2454.1,2453.8,0.81468]
[1749183102123,0.3396,2454.1,2453.8,0.81468]
[1749183102319,1.15419,2454.1,2453.8,0.81468]
[1749183103621,0.3396,2454.1,2453.8,0.81468]
[1749183103821,1.15419,2454.1,2453.8,0.81468]
[1749183104320,0.3396,2454.1,2453.8,0.81468]
[1749183104520,1.15421,2454.1,2453.8,0.81468]
[1749183104824,1.15419,2454.1,2453.8,0.81466]
[1749183105021,0.3396,2454.1,2453.9,0.81465]
[1749183105218,1.1542,2454.1,2453.8,2.08727]
[1749183106624,0.81462,2454.0,2453.8,2.08727]
[1749183106818,0.3396,2454.1,2453.8,2.08727]
[1749183107018,1.15419,2454.1,2453.8,2.08727]
[1749183107219,1.15419,2454.1,2453.8,1.2726]
[1749183107419,1.15419,2454.1,2453.8,2.08726]
[1749183107726,0.81459,2454.1,2453.9,0.81465]
[1749183108821,0.81459,2454.1,2453.8,0.81466]
[1749183109226,0.81457,2454.2,2453.9,0.81465]
[1749183110732,2.16465182,2454.3,2454.0,0.81462]
[1749183110917,1.35012182,2454.3,2453.7,4.44517143]
[1749183111125,1.35012182,2454.3,2453.8,2.03671]
[1749183111324,1.35012182,2454.3,2453.9,1.2629]
[1749183111626,0.3396,2454.2,2454.1,0.81456]
[1749183112327,0.3396,2454.2,2454.0,1.46279]
[1749183113335,1.15415,2454.2,2454.0,1.46279]
[1749183113735,0.81458,2454.1,2454.0,0.6482]
[1749183114137,1.15417,2454.2,2454.0,0.6482]
[1749183114538,1.15417,2454.2,2453.8,2.41487143]
[1749183114539,0.81462,2454.0,2453.8,2.41487143]
[1749183114734,0.81462,2454.0,2453.7,4.58007143]
[1749183115036,2.165,2454.1,2453.8,0.81468]
[1749183115235,1.3504,2454.1,2453.8,0.81468]
[1749183115439,2.16499,2454.1,2453.8,3.22953143]
[1749183116334,2.165,2454.1,2453.8,3.22955143]
[1749183117735,2.165,2454.1,2453.9,0.81465]
[1749183118337,2.165,2454.1,2453.9,3.22952143]
[1749183118737,0.3396,2454.2,2453.9,2.41487143]
[1749183119138,1.2611,2454.1,2453.9,3.22951143]
[1749183119434,1.2611,2454.1,2454.0,3.22949143]
[1749183120437,1.2611,2454.1,2454.0,2.41487143]
[1749183120640,1.2611,2454.1,2454.0,3.22949143]
[1749183121039,0.3396,2454.2,2454.1,0.81459]
[1749183121241,0.3396,2454.2,2454.0,3.22947143]
[1749183121440,0.81459,2454.1,2454.0,2.41487143]
[1749183121842,1.2558,2454.1,2454.0,0.81462]
[1749183122148,1.2558,2454.1,2454.0,3.22949143]
[1749183122333,1.2558,2454.1,2454.0,2.41487143]
[1749183122533,0.3396,2454.2,2454.0,2.41487143]
[1749183122733,0.3396,2454.2,2454.1,0.81459]
[1749183122935,0.81459,2454.1,2454.0,2.41487143]
[1749183123142,0.81459,2454.1,2453.7,2.41487143]
[1749183123143,2.26396721,2454.1,2453.7,2.41487143]
[1749183123339,0.81469,2453.8,2453.6,2.41487143]
[1749183123538,2.029,2453.7,2453.5,2.41487143]
[1749183123741,0.81475,2453.6,2453.5,2.41487143]
[1749183123942,2.82265,2453.6,2453.4,2.41487143]
[1749183124144,2.0079,2453.6,2453.4,2.41487143]
[1749183124345,2.0079,2453.6,2453.4,3.22967143]
[1749183125141,0.6416,2453.6,2453.4,3.22967143]
[1749183125345,0.6416,2453.6,2453.5,0.81479]
[1749183125636,0.6627,2453.7,2453.5,0.81479]
[1749183125841,0.6627,2453.7,2453.4,2.41487143]
[1749183126041,2.82254,2453.7,2453.4,2.41487143]
[1749183126337,2.0078,2453.7,2453.4,0.81482]
[1749183126537,2.82252,2453.7,2453.4,3.22969143]
[1749183126744,2.0078,2453.7,2453.4,3.22969143]
[1749183127339,0.6627,2453.7,2453.5,0.81477]
[1749183127540,3.2078,2453.9,2453.8,0.81469]
[1749183127838,1.15418,2454.2,2453.8,0.81469]
[1749183128039,0.8146,2454.1,2453.9,0.6616]
[1749183128231,1.15417,2454.2,2453.9,0.6616]
[1749183128435,0.3396,2454.2,2454.0,0.8146]
[1749183128835,0.3396,2454.2,2453.9,1.47623]
[1749183129348,3.5474,2454.2,2453.9,0.6616]
[1749183129645,0.81472,2453.7,2453.6,2.41487143]
[1749183129842,4.02251,2453.8,2453.4,3.06667143]
[1749183130038,0.81474,2453.7,2453.4,3.06667143]
[1749183130239,3.2078,2453.8,2453.4,0.6518]
[1749183130438,3.2078,2453.5,2453.0,9.13874]
[1749183130639,1.344,2453.4,2453.0,9.13874]
[1749183130838,2.82654,2453.4,2453.0,9.13874]
[1749183131443,2.0117,2453.4,2453.0,8.3238]
[1749183131645,0.6677,2453.4,2453.1,0.81492]
[1749183133134,3.2078,2453.5,2453.2,0.81486]
[1749183133338,3.2078,2453.5,2453.3,0.6482]
[1749183134039,3.2078,2453.5,2453.3,1.46304]
[1749183134347,3.2078,2453.5,2453.4,0.81483]
[1749183134536,5.117,2453.8,2453.3,3.856]
[1749183134743,0.81463,2454.0,2453.6,0.81473]
[1749183134943,4.69912,2454.1,2453.7,1.49922]
[1749183135144,4.69912,2454.1,2453.7,0.6845]
[1749183135145,0.81464,2454.0,2453.7,0.6845]
[1749183135744,0.81467,2453.9,2453.7,0.6845]
[1749183137047,1.15427,2453.9,2453.7,0.6845]
[1749183137244,0.8147,2453.8,2453.7,0.6845]
[1749183137445,0.8147,2453.8,2453.4,5.17590306]
[1749183137746,0.81474,2453.7,2453.4,5.84730306]
[1749183138345,2.15792,2453.8,2453.4,5.84730306]
[1749183138541,2.15792,2453.8,2453.5,0.8148]
[1749183139146,0.81474,2453.7,2453.4,1.3366]
[1749183139347,2.22264,2453.7,2453.4,1.3366]
[1749183140149,2.85704,2453.7,2453.4,1.3366]
[1749183140648,4.15814,2453.7,2453.4,1.3366]
[1749183140949,4.15814,2453.7,2453.4,2.15143]
[1749183142443,1.4079,2453.7,2453.4,1.3366]
[1749183142650,2.22265,2453.7,2453.5,1.3336]
[1749183142851,2.22265,2453.7,2453.4,2.15141]
[1749183143151,2.22265,2453.7,2453.4,4.56750306]
[1749183143443,2.22265,2453.7,2453.4,2.15142]
[1749183143648,0.81479,2453.6,2453.4,1.3366]
[1749183143846,3.52375,2453.7,2453.4,2.15142]
[1749183144046,0.81478,2453.6,2453.4,1.3366]
[1749183144241,0.81478,2453.6,2453.4,2.15143]
[1749183144647,3.52376,2453.7,2453.4,2.15143]
[1749183145043,2.709,2453.7,2453.4,1.3366]
[1749183145244,0.8148,2453.6,2453.4,1.3366]
[1749183145849,3.52375,2453.7,2453.4,2.15143]
[1749183146048,1.4079,2453.7,2453.5,0.81479]
[1749183146551,1.4079,2453.7,2453.4,4.56750306]
[1749183146748,1.4079,2453.7,2453.6,0.81477]
[1749183147145,1.4079,2453.7,2453.5,2.07898]
[1749183147345,1.4079,2453.7,2453.6,0.81477]
[1749183147547,1.4079,2453.7,2453.6,2.07897]
[1749183147748,1.4079,2453.7,2453.4,4.56749306]
[1749183147954,1.4079,2453.7,2453.5,0.8148]
[1749183148555,2.22264,2453.7,2453.4,5.83170306]
[1749183148747,1.4079,2453.7,2453.5,0.8148]
[1749183149951,1.4079,2453.7,2453.4,5.83171306]
[1749183150150,2.22264,2453.7,2453.4,5.83171306]
[1749183150352,1.4079,2453.7,2453.4,5.83171306]
[1749183150746,2.22269,2453.7,2453.4,5.01689306]
[1749183150948,1.4079,2453.7,2453.4,5.83176306]
[1749183151453,2.22268,2453.7,2453.4,5.83176306]
[1749183152352,1.4079,2453.7,2453.4,3.75269306]
[1749183152556,1.4079,2453.7,2453.4,1.3366]
[1749183152746,0.81483,2453.6,2453.4,1.3366]
[1749183152944,0.81489,2453.4,2453.3,2.41609306]
[1749183153154,0.81489,2453.4,2453.1,3.06529306]
[1749183153755,4.02276,2453.2,2453.1,0.6492]
[1749183154351,3.8386,2453.5,2453.3,0.8149]
[1749183154557,3.8386,2453.5,2453.2,0.81494]
[1749183154856,3.8386,2453.5,2453.1,3.88026306]
[1749183155057,0.81492,2453.4,2453.1,3.06529306]
[1749183155258,0.81492,2453.4,2453.1,3.88028306]
[1749183155551,3.8386,2453.5,2453.1,3.06529306]
[1749183155757,2.84481,2453.4,2453.1,0.6492]
[1749183156145,4.02278,2453.2,2452.9,3.11211488]
[1749183156359,4.02278,2453.2,2452.9,0.69602182]
[1749183156545,3.2078,2453.2,2452.9,0.69602182]
[1749183156751,3.2078,2453.2,2453.1,0.81499]
[1749183156951,3.2078,2453.2,2453.0,0.81501]
[1749183157858,3.2078,2453.2,2453.1,0.81499]
[1749183160363,3.2078,2453.2,2453.0,0.81501]
[1749183160656,3.2078,2453.2,2453.1,0.815]
[1749183161258,0.3397,2453.3,2452.9,3.11211488]
[1749183161457,0.3397,2453.3,2453.2,0.81497]
[1749183161853,0.3397,2453.3,2453.1,0.81498]
[1749183162063,0.3397,2453.3,2453.2,0.81497]
[1749183163664,0.3397,2453.3,2453.1,0.81498]
[1749183164356,0.3397,2453.3,2453.2,0.81497]
[1749183164862,0.3397,2453.3,2453.1,0.815]
[1749183165458,0.3397,2453.3,2453.0,1.2538]
[1749183165459,1.15461,2453.3,2453.0,1.2538]
[1749183165659,0.3397,2453.3,2453.0,1.2538]
[1749183165859,0.3397,2453.3,2452.9,3.92713488]
[1749183166261,0.3397,2453.3,2453.0,2.41609306]
[1749183167365,1.15461,2453.3,2453.0,2.41609306]
[1749183167754,0.3397,2453.3,2453.0,2.41609306]
[1749183167955,0.815,2453.0,2452.9,0.00612182]
[1749183168161,1.71730864,2453.0,2452.9,0.00612182]
[1749183168862,3.68590864,2453.0,2452.9,0.00612182]
[1749183172253,1.55900864,2453.0,2452.9,0.00612182]
[1749183172459,6.67100864,2453.0,2452.9,0.00612182]
[1749183172761,0.90230864,2453.0,2452.9,0.00612182]
[1749183172954,5.112,2453.3,2453.0,0.81499]
[1749183173161,0.90142628,2453.2,2453.1,0.6438]
[1749183175764,0.90142628,2453.2,2453.1,1.45877]
[1749183175964,0.631,2453.4,2453.1,1.45877]
[1749183176163,0.90153523,2453.3,2453.1,2.84237]
[1749183176365,8.3198,2453.5,2453.1,2.84237]
[1749183176562,0.90162594,2453.4,2453.2,0.81492]
[1749183176869,3.2078,2453.5,2453.4,0.81487]
[1749183177079,4.10557935,2453.5,2453.4,0.81487]
[1749183177670,4.10557935,2453.5,2453.3,0.81488]
[1749183177971,6.3936,2453.7,2453.4,0.81486]
[1749183178172,6.3936,2453.7,2453.5,0.6871]
[1749183178467,3.2078,2453.9,2453.6,0.8148]
[1749183178664,3.2078,2453.9,2453.5,0.6871]
[1749183178874,3.21392182,2454.3,2453.6,3.8721]
[1749183179066,3.21392182,2454.3,2453.9,0.81469]
[1749183179265,3.21392182,2454.3,2454.0,0.6871]
[1749183179669,0.3396,2454.2,2454.0,0.6871]
[1749183180572,0.3396,2454.2,2454.0,1.50176]
[1749183180773,0.3396,2454.2,2454.1,0.81464]
[1749183180973,0.3396,2454.2,2454.0,1.50175]
[1749183181173,0.3396,2454.2,2454.1,0.81464]
[1749183181370,0.3396,2454.2,2454.0,0.6871]
[1749183181569,0.81465,2454.1,2453.7,2.41609306]
[1749183181769,2.50512,2454.2,2453.7,0.6903]
[1749183182169,2.50512,2454.2,2453.7,1.50506]
[1749183182573,0.81464,2454.1,2453.7,0.6903]
[1749183182869,0.81464,2454.1,2453.7,1.50507]
[1749183183070,0.81467,2454.0,2453.7,0.6903]
[1749183183378,0.81471,2453.9,2453.7,0.6903]
[1749183183575,1.9606,2453.9,2453.3,3.2078]
[1749183183778,0.81485,2453.5,2453.1,1.3149]
[1749183184078,0.81482,2453.6,2453.1,2.12986]
[1749183184279,2.12084,2453.5,2453.1,1.3149]
[1749183184478,1.306,2453.5,2453.1,1.3149]
[1749183184679,2.12086,2453.5,2453.1,1.3149]
[1749183184875,1.306,2453.5,2453.1,2.12987]
[1749183185281,2.12084,2453.5,2453.1,1.3149]
[1749183185481,1.306,2453.5,2453.1,1.3149]
[1749183185674,2.12085,2453.5,2453.1,1.3149]
[1749183189779,0.81487,2453.4,2453.1,1.3149]
[1749183190385,2.12085,2453.5,2453.1,1.3149]
[1749183191775,0.81485,2453.5,2453.1,1.3149]
[1749183192076,4.02258,2453.7,2453.1,2.6683]
[1749183192284,3.2078,2453.7,2453.3,4.02266]
[1749183192486,3.2078,2453.7,2453.4,1.3493]
[1749183192683,4.02257,2453.7,2453.4,1.3493]
[1749183193187,3.2078,2453.7,2453.4,1.3493]
[1749183193386,4.02257,2453.7,2453.4,1.3493]
[1749183194388,4.02257,2453.7,2453.3,3.2078]
[1749183194988,0.81481,2453.6,2453.3,3.2078]
[1749183195287,4.02258,2453.7,2453.3,3.2078]
[1749183196083,3.2078,2453.7,2453.3,3.2078]
[1749183196280,3.2078,2453.7,2453.1,1.3149]
[1749183196483,3.2078,2453.4,2453.1,1.3149]
[1749183196683,4.02267,2453.4,2453.1,1.3149]
[1749183197282,3.2078,2453.4,2453.1,1.3149]
[1749183198189,3.2078,2453.4,2453.1,2.6821]
[1749183199988,0.81486,2453.4,2453.1,2.6821]
[1749183200790,0.81486,2453.4,2453.1,1.3149]
[1749183200982,2.16666,2453.4,2453.1,1.3149]
[1749183201384,4.5596,2453.4,2452.9,0.00612182]
[1749183201582,0.6512,2453.3,2452.9,0.00612182]
[1749183201792,0.815,2453.0,2452.9,0.00612182]
[1749183201991,1.6938,2453.2,2452.9,0.00612182]
[1749183202295,0.81497,2453.1,2452.9,0.00612182]
[1749183202789,2.82317,2453.1,2452.9,0.00612182]
[1749183204088,2.82316,2453.1,2452.9,0.00612182]
[1749183204491,0.815,2453.0,2452.9,0.00612182]
[1749183204697,2.82318,2453.1,2452.9,0.00612182]
[1749183204897,0.815,2453.0,2452.9,0.00612182]
[1749183205097,2.82319,2453.1,2452.9,0.00612182]
[1749183205397,2.0082,2453.1,2452.9,0.00612182]
[1749183208404,2.82317,2453.1,2452.9,0.00612182]
[1749183208601,0.815,2453.0,2452.9,0.00612182]
[1749183209400,2.1787,2453.0,2452.9,0.00612182]
[1749183210898,1.3637,2453.0,2452.9,0.00612182]
[1749183211099,4.67688,2453.1,2452.9,0.00612182]
[1749183211896,3.8619,2453.1,2452.9,0.00612182]
[1749183212099,0.815,2453.0,2452.9,0.00612182]
[1749183212496,4.67689,2453.1,2452.9,0.00612182]
[1749183212801,0.815,2453.0,2452.9,0.00612182]
[1749183213001,1.46909,2453.1,2452.9,0.00612182]
[1749183213994,0.815,2453.0,2452.9,0.00612182]
[1749183215699,5.815,2453.0,2452.9,0.00612182]
[1749183215900,5.815,2453.0,2451.8,0.908]
[1749183215901,0.8152,2452.4,2452.3,2.41609306]
[1749183216097,4.02299,2452.5,2452.1,2.41609306]
[1749183216301,4.02298,2452.5,2452.1,2.41609306]
[1749183216501,0.8152,2452.4,2452.0,5.62389306]
[1749183216701,2.82188,2452.5,2452.0,5.62389306]
[1749183216899,2.82800182,2452.5,2452.0,6.44534488]
[1749183217102,0.81521,2452.4,2452.0,5.63001488]
[1749183217406,2.82800182,2452.5,2452.0,6.44534488]
[1749183217707,0.81528,2452.2,2452.0,0.00612182]
[1749183218305,5.22062182,2452.5,2452.0,0.00612182]
[1749183218505,0.81523,2452.3,2452.0,0.00612182]
[1749183218901,0.81527,2452.2,2452.0,0.00612182]
[1749183219404,0.8153,2452.1,2452.0,0.00612182]
[1749183219602,0.81528,2452.2,2452.0,0.00612182]
[1749183220306,0.8153,2452.1,2452.0,0.00612182]
[1749183220507,1.15508,2452.2,2452.0,0.00612182]
[1749183220708,2.52518,2452.2,2452.0,0.00612182]
[1749183221710,0.8153,2452.1,2452.0,0.00612182]
[1749183221913,2.52518,2452.2,2452.0,0.00612182]
[1749183222119,1.7099,2452.2,2452.0,0.00612182]
[1749183222513,2.52518,2452.2,2452.0,0.00612182]
[1749183223116,0.8153,2452.1,2452.0,0.00612182]
[1749183223308,2.52518,2452.2,2452.0,0.00612182]
[1749183223704,1.7099,2452.2,2452.0,0.00612182]
[1749183224419,2.52518,2452.2,2452.0,0.00612182]
[1749183225412,0.3398,2452.2,2452.0,0.00612182]
[1749183225906,1.15507,2452.2,2452.0,0.00612182]
[1749183226609,4.0231,2452.1,2452.0,0.00612182]
[1749183226819,5.9279,2452.1,2452.0,0.00612182]
[1749183227017,0.8155,2451.5,2451.4,0.6372]
[1749183228221,0.81549,2451.6,2451.2,0.00612182]
[1749183228523,0.81549,2451.6,2451.2,1.91242182]
[1749183228823,0.81551,2451.5,2451.2,1.91242182]
[1749183229011,0.81551,2451.5,2451.2,0.64332182]
[1749183229626,0.81548,2451.6,2451.2,0.64332182]
[1749183229826,2.12348,2451.6,2451.2,0.64332182]
[1749183230030,7.22048,2451.6,2451.2,0.64332182]
[1749183230229,7.22048,2451.6,2451.2,1.96872182]
[1749183230526,5.097,2451.6,2451.2,2.78430182]
[1749183230718,5.097,2451.6,2451.2,1.96872182]
[1749183230719,0.81547,2451.6,2451.2,1.96872182]
[1749183232529,0.81551,2451.5,2451.2,1.96872182]
[1749183232730,0.81551,2451.5,2451.2,0.64332182]
[1749183234134,0.81548,2451.6,2451.2,0.64332182]
[1749183234430,2.06958,2451.6,2451.2,0.64332182]
[1749183234933,1.2541,2451.6,2451.2,1.45891182]
[1749183235134,7.22335,2451.7,2451.2,2.83131182]
[1749183235328,0.81547,2451.6,2451.2,2.01572182]
[1749183235736,0.8155,2451.5,2451.2,2.01572182]
[1749183236536,1.8571,2451.6,2451.3,0.81556]
[1749183236737,1.8571,2451.6,2451.4,3.2078]
[1749183236937,1.8571,2451.6,2451.5,1.3724]
[1749183238539,5.098,2451.7,2451.5,1.3724]
[1749183238837,5.91343,2451.7,2451.6,0.6429]
[1749183239038,5.098,2451.7,2451.6,0.6429]
[1749183239233,5.098,2451.8,2451.6,0.6429]
[1749183239535,5.098,2451.9,2451.6,1.45836]
[1749183239735,5.91336,2451.9,2451.7,2.0235]